[Event "NOR-ch Various 2019"]
[Site "Larvik"]
[Date "2019.07.06"]
[Round "1.8"]
[White "Stai, Sondre"]
[Black "Pettersen, Joran Sten"]
[Result "0-1"]
[ECO "C03"]
[WhiteElo "1657"]
[BlackElo "1785"]
[Annotator "NA"]
[PlyCount "94"]
[EventDate "2019.07.06"]
[EventType "swiss"]
[EventCountry "NOR"]
[SourceTitle "playchess.com"]
[Source "ChessBase"]
[SourceQuality "1"]
[TimeControl "40/5400+30:1800+30"]

1. e4 {[%emt 0:00:00]} e6 {[%emt 0:00:00]} 2. d4 {[%emt 0:00:00]} d5 {[%emt 0:00:00]} 3. Nd2 {[%emt 0:00:00]} Be7 {[%emt 0:00:09]} 4. Ngf3 {[%emt 0:01:21]} Nf6 {[%emt 0:01:28]} 5. e5 {[%emt 0:02:37]} Nfd7 {[%emt 0:00:48]} 6. Bd3 {[%emt 0:01:06]} c5 {[%emt 0:00:57]} 7. c3 {[%emt 0:00:10]} b6 {[%emt 0:01:44]} 8. Qe2 {[%emt 0:03:34]} a5 {[%emt 0:04:59]} 9. Nf1 {[%emt 0:10:46]} Ba6 {[%emt 0:03:56]} 10. Ng3 {[%emt 0:01:00]} Bxd3 {[%emt 0:03:24]} 11. Qxd3 {[%emt 0:00:09]} Nc6 {[%emt 0:01:40]} 12. Bd2 {[%emt 0:14:22]} Rc8 {[%emt 0:12:49]} 13. a3 {[%emt 0:04:51]} O-O {[%emt 0:05:53]} 14. h4 {[%emt 0:02:11]} cxd4 {[%emt 0:07:18]} 15. cxd4 {[%emt 0:00:17]} f6 {[%emt 0:05:03]} 16. exf6 {[%emt 0:14:34]} Nxf6 {[%emt 0:01:27]} 17. O-O {[%emt 0:07:27]} h6 {[%emt 0:05:53]} 18. Rae1 {[%emt 0:01:39]} Qd7 {[%emt 0:07:28]} 19. Qg6 {[%emt 0:01:06]} Kh8 {[%emt 0:09:31]} 20. Re2 {[%emt 0:12:22]} Bd6 {[%emt 0:06:12]} 21. Rfe1 {[%emt 0:02:21]} Nd8 {[%emt 0:01:36]} 22. Ne5 {[%emt 0:02:09]} Bxe5 {[%emt 0:01:49]} 23. Rxe5 {[%emt 0:01:43]} Qf7 {[%emt 0:01:15]} 24. Qxf7 {[%emt 0:01:23]} Rxf7 {[%emt 0:00:09]} 25. f3 {[%emt 0:02:21]} Rc4 {[%emt 0:02:05]} 26. Bc3 {[%emt 0:00:26]} Nd7 {[%emt 0:01:39]} 27. R5e2 {[%emt 0:01:45]} Nf8 {[%emt 0:01:12]} 28. h5 {[%emt 0:01:26]} Kg8 {[%emt 0:00:35]} 29. Re3 {[%emt 0:01:24]} Rfc7 {[%emt 0:01:58]} 30. Ne2 {[%emt 0:00:54]} Kf7 {[%emt 0:02:45]} 31. Nf4 {[%emt 0:01:26]} Ra7 {[%emt 0:02:46]} 32. Nd3 {[%emt 0:01:16]} Nd7 {[%emt 0:01:36]} 33. Nf4 {[%emt 0:00:44]} Nf8 {[%emt 0:00:44]} 34. Nd3 {[%emt 0:01:08]} Nd7 {[%emt 0:01:13]} 35. Nf4 {[%emt 0:00:14]} Rc6 {[%emt 0:00:31]} 36. g4 {[%emt 0:02:26]} b5 {[%emt 0:00:41]} 37. R1e2 {[%emt 0:01:27]} Nb6 {[%emt 0:01:57]} 38. Nd3 {[%emt 0:01:18]} Nc4 {[%emt 0:00:54]} 39. Ne5+ {[%emt 0:00:26]} Nxe5 {[%emt 0:00:20]} 40. Rxe5 {[%emt 0:00:34]} Rc4 {[%emt 0:01:51]} 41. R5e3 {[%emt 0:32:56]} b4 {[%emt 0:31:22]} 42. Be1 {[%emt 0:00:00]} Rxd4 {[%emt 0:00:00]} 43. Bh4 {[%emt 0:00:00]} Rd1+ {[%emt 0:00:00]} 44. Kg2 {[%emt 0:00:00]} d4 {[%emt 0:00:00]} 45. Re4 {[%emt 0:00:00]} d3 {[%emt 0:00:00]} 46. Bxd8 {[%emt 0:00:00]} dxe2 {[%emt 0:00:00]} 47. Rxe2 {[%emt 0:00:00]} Rxd8 {[%emt 0:00:00]} 0-1

[Event "NOR-ch Various 2019"]
[Site "Larvik"]
[Date "2019.07.06"]
[Round "1.9"]
[White "Storli, Frode"]
[Black "Ringstad, Age"]
[Result "1/2-1/2"]
[ECO "D02"]
[WhiteElo "1598"]
[BlackElo "1486"]
[Annotator "NA"]
[PlyCount "103"]
[EventDate "2019.07.06"]
[EventType "swiss"]
[EventCountry "NOR"]
[SourceTitle "playchess.com"]
[Source "ChessBase"]
[SourceQuality "1"]
[TimeControl "40/5400+30:1800+30"]

1. d4 {[%emt 0:00:00]} d5 {[%emt 0:00:11]} 2. Bf4 {[%emt 0:00:00]} e6 {[%emt 0:02:10]} 3. e3 {[%emt 0:00:00]} Bd6 {[%emt 0:00:22]} 4. Bg3 {[%emt 0:00:00]} Nf6 {[%emt 0:01:11]} 5. Nf3 {[%emt 0:00:06]} Nc6 {[%emt 0:01:47]} 6. c3 {[%emt 0:00:24]} h6 {[%emt 0:04:21]} 7. Nbd2 {[%emt 0:00:44]} Ne4 {[%emt 0:01:21]} 8. Nxe4 {[%emt 0:01:27]} dxe4 {[%emt 0:00:12]} 9. Nd2 {[%emt 0:00:14]} f5 {[%emt 0:01:19]} 10. Qh5+ {[%emt 0:04:59]} Kd7 {[%emt 0:01:17]} 11. Qg6 {[%emt 0:03:33]} Qg5 {[%emt 0:01:13]} 12. Qxg5 {[%emt 0:01:28]} hxg5 {[%emt 0:00:05]} 13. O-O-O {[%emt 0:05:58]} a6 {[%emt 0:01:50]} 14. Bxd6 {[%emt 0:03:31]} cxd6 {[%emt 0:00:30]} 15. Nc4 {[%emt 0:00:14]} Kc7 {[%emt 0:00:55]} 16. d5 {[%emt 0:01:59]} Ne5 {[%emt 0:01:06]} 17. Nxe5 {[%emt 0:04:58]} dxe5 {[%emt 0:00:11]} 18. Bc4 {[%emt 0:00:29]} b5 {[%emt 0:02:48]} 19. Bb3 {[%emt 0:01:45]} exd5 {[%emt 0:01:04]} 20. Bxd5 {[%emt 0:00:20]} Ra7 {[%emt 0:00:31]} 21. h3 {[%emt 0:00:53]} Bb7 {[%emt 0:00:28]} 22. Be6 {[%emt 0:00:18]} Bc8 {[%emt 0:00:17]} 23. Bxc8 {[%emt 0:04:39]} Kxc8 {[%emt 0:00:57]} 24. Rd5 {[%emt 0:00:13]} Re8 {[%emt 0:00:08]} 25. Rhd1 {[%emt 0:04:27]} Rc7 26. Kb1 {[%emt 0:07:13]} Rc6 {[%emt 0:07:46]} 27. Rd7 {[%emt 0:00:00]} g6 {[%emt 0:01:32]} 28. R1d6 {[%emt 0:01:42]} Re6 {[%emt 0:01:58]} 29. Rd8+ {[%emt 0:08:08]} Kc7 {[%emt 0:00:45]} 30. R6d7+ {[%emt 0:01:07]} Kb6 {[%emt 0:00:19]} 31. Rb8+ {[%emt 0:05:22]} Kc5 {[%emt 0:01:45]} 32. Kc2 {[%emt 0:05:17]} Red6 {[%emt 0:00:48]} 33. Rxd6 {[%emt 0:04:37]} Rxd6 {[%emt 0:01:03]} 34. Rc8+ {[%emt 0:00:38]} Kd5 {[%emt 0:00:17]} 35. b3 {[%emt 0:13:45]} f4 {[%emt 0:00:28]} 36. c4+ {[%emt 0:00:48]} bxc4 {[%emt 0:00:41]} 37. bxc4+ {[%emt 0:00:34]} Ke6 {[%emt 0:06:32]} 38. Re8+ {[%emt 0:00:52]} Kf6 {[%emt 0:00:00]} 39. Rc8 {[%emt 0:01:27]} Ke7 {[%emt 0:00:00]} 40. Rc5 {[%emt 0:06:30]} Re6 {[%emt 0:00:00]} 41. Rd5 {[%emt 0:31:07]} Kf6 {[%emt 0:05:56]} 42. g4 {[%emt 0:05:30]} Ke7 {[%emt 0:27:07]} 43. c5 {[%emt 0:01:14]} Kf6 {[%emt 0:00:57]} 44. Rd6 {[%emt 0:01:16]} Rxd6 {[%emt 0:00:30]} 45. cxd6 {[%emt 0:00:11]} Ke6 {[%emt 0:00:08]} 46. d7 {[%emt 0:00:08]} Kxd7 {[%emt 0:01:24]} 47. Kc3 Kd6 {[%emt 0:00:30]} 48. Kc4 {[%emt 0:01:57]} Kc6 {[%emt 0:02:25]} 49. a4 {[%emt 0:00:00]} a5 {[%emt 0:00:00]} 50. Kc3 {[%emt 0:01:50]} Kc5 {[%emt 0:00:00]} 51. Kb3 {[%emt 0:00:00]} Kd5 {[%emt 0:00:00]} 52. Kc3 {[%emt 0:00:00]} 1/2-1/2

[Event "NOR-ch Various 2019"]
[Site "Larvik"]
[Date "2019.07.06"]
[Round "1.10"]
[White "Stette, Harald Peter"]
[Black "Odegaard, Karl Eirik"]
[Result "1/2-1/2"]
[ECO "D52"]
[WhiteElo "1486"]
[BlackElo "1591"]
[Annotator "NA"]
[PlyCount "53"]
[EventDate "2019.07.06"]
[EventType "swiss"]
[EventCountry "NOR"]
[SourceTitle "playchess.com"]
[Source "ChessBase"]
[SourceQuality "1"]
[TimeControl "40/5400+30:1800+30"]

1. d4 {[%emt 0:00:00]} d5 {[%emt 0:00:00]} 2. c4 {[%emt 0:00:00]} e6 {[%emt 0:00:17]} 3. Nc3 {[%emt 0:00:17]} Nf6 {[%emt 0:00:43]} 4. Bg5 {[%emt 0:00:36]} c6 {[%emt 0:01:31]} 5. Nf3 {[%emt 0:01:10]} Nbd7 {[%emt 0:02:48]} 6. e3 {[%emt 0:03:53]} Qa5 {[%emt 0:02:48]} 7. Nd2 {[%emt 0:13:12]} Bb4 {[%emt 0:06:31]} 8. Qc2 {[%emt 0:01:39]} Ne4 {[%emt 0:08:38]} 9. Ndxe4 {[%emt 0:04:57]} dxe4 {[%emt 0:01:59]} 10. Bf4 {[%emt 0:08:20]} O-O {[%emt 0:06:10]} 11. Be2 {[%emt 0:01:17]} e5 {[%emt 0:07:07]} 12. Bg3 {[%emt 0:07:17]} f5 {[%emt 0:06:18]} 13. O-O {[%emt 0:02:26]} Be7 {[%emt 0:03:11]} 14. dxe5 {[%emt 0:09:04]} Nxe5 {[%emt 0:04:17]} 15. a3 {[%emt 0:04:44]} Be6 {[%emt 0:11:49]} 16. b4 {[%emt 0:07:10]} Qc7 {[%emt 0:04:13]} 17. Rfd1 {[%emt 0:09:55]} Bf6 {[%emt 0:04:21]} 18. Na4 {[%emt 0:04:30]} Qe7 {[%emt 0:07:07]} 19. Rac1 {[%emt 0:02:13]} Rad8 {[%emt 0:06:10]} 20. Rxd8 {[%emt 0:02:51]} Rxd8 {[%emt 0:02:10]} 21. Bxe5 {[%emt 0:01:40]} Bxe5 {[%emt 0:00:25]} 22. c5 {[%emt 0:00:35]} Bd5 {[%emt 0:03:58]} 23. Rd1 {[%emt 0:01:39]} Kf8 {[%emt 0:01:47]} 24. Nb2 {[%emt 0:01:15]} Bxb2 {[%emt 0:01:17]} 25. Qxb2 {[%emt 0:00:40]} Kf7 {[%emt 0:01:25]} 26. Qd4 {[%emt 0:03:26]} Qf6 {[%emt 0:00:35]} 27. Qxf6+ {[%emt 0:02:27]} 1/2-1/2

[Event "NOR-ch Various 2019"]
[Site "Larvik"]
[Date "2019.07.06"]
[Round "1.11"]
[White "Skretteberg, Martin"]
[Black "Marthinussen, Viktor"]
[Result "1-0"]
[ECO "C41"]
[WhiteElo "1397"]
[BlackElo "1301"]
[Annotator "NA"]
[PlyCount "107"]
[EventDate "2019.07.06"]
[EventType "swiss"]
[EventCountry "NOR"]
[SourceTitle "playchess.com"]
[Source "ChessBase"]
[SourceQuality "1"]
[TimeControl "40/5400+30:1800+30"]

1. e4 {[%emt 0:14:05]} e5 {[%emt 0:00:44]} 2. Nf3 {[%emt 0:00:53]} d6 {[%emt 0:02:08]} 3. Be2 {[%emt 0:02:28]} Bg4 {[%emt 0:02:13]} 4. Nc3 {[%emt 0:02:20]} Bxf3 {[%emt 0:03:09]} 5. Bxf3 {[%emt 0:00:33]} c6 {[%emt 0:00:50]} 6. O-O {[%emt 0:01:49]} g6 {[%emt 0:02:24]} 7. d4 {[%emt 0:02:34]} Bg7 {[%emt 0:01:19]} 8. d5 {[%emt 0:00:52]} c5 {[%emt 0:02:17]} 9. Qd3 {[%emt 0:04:11]} Ne7 {[%emt 0:04:21]} 10. Qb5+ {[%emt 0:02:53]} Qd7 {[%emt 0:00:02]} 11. Be2 {[%emt 0:03:51]} Nc8 {[%emt 0:01:33]} 12. Qxd7+ {[%emt 0:03:09]} Nxd7 {[%emt 0:01:50]} 13. Bb5 {[%emt 0:02:13]} a6 {[%emt 0:01:21]} 14. Bxd7+ {[%emt 0:02:37]} Kxd7 {[%emt 0:00:29]} 15. a4 {[%emt 0:04:40]} b6 {[%emt 0:02:36]} 16. Ne2 {[%emt 0:03:04]} Rf8 {[%emt 0:03:14]} 17. Ra3 {[%emt 0:02:49]} f5 {[%emt 0:02:15]} 18. f3 {[%emt 0:03:25]} Ne7 {[%emt 0:00:58]} 19. Bg5 {[%emt 0:02:44]} h6 {[%emt 0:02:22]} 20. Bxe7 {[%emt 0:01:32]} Kxe7 {[%emt 0:00:02]} 21. Raa1 {[%emt 0:01:38]} h5 {[%emt 0:01:54]} 22. c3 {[%emt 0:04:01]} Bh6 {[%emt 0:00:24]} 23. exf5 {[%emt 0:09:51]} Rxf5 {[%emt 0:01:16]} 24. Ng3 {[%emt 0:00:30]} Rf4 {[%emt 0:00:48]} 25. Ne4 {[%emt 0:01:00]} Raf8 {[%emt 0:01:39]} 26. b4 {[%emt 0:02:40]} c4 {[%emt 0:04:07]} 27. b5 {[%emt 0:03:13]} a5 {[%emt 0:00:41]} 28. Ra2 {[%emt 0:02:42]} g5 {[%emt 0:00:32]} 29. h3 {[%emt 0:02:36]} g4 {[%emt 0:01:18]} 30. hxg4 {[%emt 0:01:28]} hxg4 {[%emt 0:00:49]} 31. Raf2 {[%emt 0:01:09]} g3 {[%emt 0:05:42]} 32. Nxg3 {[%emt 0:02:12]} Rh4 {[%emt 0:00:25]} 33. Re2 {[%emt 0:00:36]} Bf4 {[%emt 0:02:54]} 34. Kf2 {[%emt 0:03:46]} Kf6 {[%emt 0:00:52]} 35. Ne4+ {[%emt 0:00:58]} Ke7 {[%emt 0:00:17]} 36. g3 {[%emt 0:01:58]} Rh2+ {[%emt 0:00:07]} 37. Ke1 {[%emt 0:00:21]} Rxe2+ {[%emt 0:01:06]} 38. Kxe2 {[%emt 0:00:22]} Bh6 {[%emt 0:00:19]} 39. Rh1 {[%emt 0:00:20]} Rh8 {[%emt 0:00:24]} 40. g4 {[%emt 0:00:26]} Bg7 {[%emt 0:03:57]} 41. Rxh8 {[%emt 0:31:10]} Bxh8 {[%emt 0:30:02]} 42. Kf2 {[%emt 0:01:02]} Bg7 {[%emt 0:00:06]} 43. Kg3 {[%emt 0:00:20]} Bh6 {[%emt 0:00:04]} 44. g5 {[%emt 0:00:36]} Bg7 {[%emt 0:00:05]} 45. Kg4 {[%emt 0:00:09]} Bf8 {[%emt 0:00:13]} 46. Kf5 {[%emt 0:00:34]} Kf7 {[%emt 0:00:00]} 47. g6+ {[%emt 0:01:41]} Kg7 {[%emt 0:00:00]} 48. Ng5 {[%emt 0:00:15]} Be7 {[%emt 0:00:24]} 49. Ne6+ {[%emt 0:00:42]} Kg8 {[%emt 0:00:24]} 50. Nc7 {[%emt 0:01:34]} Kf8 {[%emt 0:04:02]} 51. Ke6 {[%emt 0:00:54]} Bg5 {[%emt 0:00:11]} 52. Na8 {[%emt 0:01:14]} Bd2 {[%emt 0:00:08]} 53. Nxb6 {[%emt 0:00:17]} Bxc3 {[%emt 0:00:10]} 54. Nxc4 {[%emt 0:00:14]} 1-0

[Event "NOR-ch Various 2019"]
[Site "Larvik"]
[Date "2019.07.06"]
[Round "1.12"]
[White "Vestby, Anniken"]
[Black "Skaansar, Lasse"]
[Result "0-1"]
[ECO "B12"]
[WhiteElo "1301"]
[BlackElo "1394"]
[Annotator "NA"]
[PlyCount "108"]
[EventDate "2019.07.06"]
[EventType "swiss"]
[EventCountry "NOR"]
[SourceTitle "playchess.com"]
[Source "ChessBase"]
[SourceQuality "1"]
[TimeControl "40/5400+30:1800+30"]

1. e4 {[%emt 0:03:42]} c6 {[%emt 0:00:00]} 2. d4 {[%emt 0:00:22]} d5 {[%emt 0:00:00]} 3. e5 {[%emt 0:00:28]} c5 {[%emt 0:00:13]} 4. Nf3 {[%emt 0:02:34]} cxd4 {[%emt 0:00:50]} 5. Nxd4 {[%emt 0:02:15]} g6 {[%emt 0:01:42]} 6. Nc3 {[%emt 0:10:59]} a6 {[%emt 0:03:57]} 7. Bd3 {[%emt 0:06:20]} Bg7 {[%emt 0:05:20]} 8. Nf3 {[%emt 0:05:34]} Bg4 {[%emt 0:07:05]} 9. Bf4 {[%emt 0:01:59]} Nc6 {[%emt 0:05:27]} 10. Be2 {[%emt 0:05:25]} Bxf3 {[%emt 0:09:15]} 11. Bxf3 {[%emt 0:00:40]} e6 {[%emt 0:00:10]} 12. O-O {[%emt 0:09:16]} Qc7 {[%emt 0:00:49]} 13. Re1 {[%emt 0:07:06]} Nge7 {[%emt 0:16:47]} 14. Rc1 {[%emt 0:11:03]} Nxe5 {[%emt 0:01:55]} 15. a3 {[%emt 0:07:12]} Nxf3+ {[%emt 0:01:01]} 16. Qxf3 {[%emt 0:00:14]} Qa5 {[%emt 0:04:27]} 17. Rb1 {[%emt 0:04:36]} O-O {[%emt 0:04:52]} 18. Bd6 {[%emt 0:02:42]} Bxc3 {[%emt 0:08:07]} 19. Qxc3 {[%emt 0:01:16]} Qd8 {[%emt 0:07:04]} 20. Be5 {[%emt 0:02:31]} Rc8 {[%emt 0:00:26]} 21. Qd2 {[%emt 0:00:38]} f6 {[%emt 0:02:14]} 22. Bd4 {[%emt 0:01:06]} e5 {[%emt 0:01:35]} 23. Bc3 {[%emt 0:02:12]} Nc6 {[%emt 0:02:45]} 24. b4 {[%emt 0:00:53]} d4 {[%emt 0:00:37]} 25. Bb2 {[%emt 0:00:43]} Ne7 {[%emt 0:02:22]} 26. Qd3 {[%emt 0:01:22]} Nd5 {[%emt 0:00:21]} 27. Rbc1 {[%emt 0:01:14]} Nc3 {[%emt 0:00:59]} 28. f3 {[%emt 0:01:32]} Qd5 {[%emt 0:01:05]} 29. Ra1 {[%emt 0:04:08]} Qc6 {[%emt 0:01:56]} 30. Rec1 {[%emt 0:00:52]} Qb6 {[%emt 0:01:35]} 31. Kf1 {[%emt 0:00:39]} a5 {[%emt 0:00:32]} 32. Bxc3 {[%emt 0:00:53]} Rxc3 {[%emt 0:00:13]} 33. Qd2 {[%emt 0:00:56]} axb4 {[%emt 0:00:27]} 34. axb4 {[%emt 0:00:35]} Qxb4 {[%emt 0:00:19]} 35. Rab1 {[%emt 0:00:15]} Qc4+ {[%emt 0:00:18]} 36. Kf2 {[%emt 0:00:48]} b5 {[%emt 0:00:58]} 37. Ra1 {[%emt 0:01:04]} Rc8 {[%emt 0:01:29]} 38. Kg3 {[%emt 0:00:31]} Rxc2 {[%emt 0:00:28]} 39. Rxc2 {[%emt 0:00:13]} Qxc2 {[%emt 0:00:08]} 40. Qxc2 {[%emt 0:02:06]} Rxc2 {[%emt 0:00:10]} 41. Ra8+ {[%emt 0:03:41]} Kf7 {[%emt 0:01:35]} 42. Ra6 {[%emt 0:01:42]} b4 {[%emt 0:02:57]} 43. Rb6 {[%emt 0:01:27]} Rb2 {[%emt 0:00:14]} 44. Rb7+ {[%emt 0:00:09]} Kg8 {[%emt 0:01:50]} 45. h4 {[%emt 0:02:44]} d3 {[%emt 0:01:23]} 46. Rd7 {[%emt 0:01:30]} d2 {[%emt 0:03:46]} 47. Kg4 {[%emt 0:02:28]} d1=Q {[%emt 0:01:01]} 48. Rxd1 {[%emt 0:00:13]} Rxg2+ {[%emt 0:00:12]} 49. Kh3 {[%emt 0:00:15]} Rb2 {[%emt 0:00:29]} 50. Rd7 {[%emt 0:00:25]} b3 {[%emt 0:00:35]} 51. Rb7 {[%emt 0:00:06]} Rb1 {[%emt 0:01:16]} 52. Kg2 {[%emt 0:02:21]} b2 {[%emt 0:00:31]} 53. Kf2 {[%emt 0:00:34]} Rh1 {[%emt 0:00:36]} 54. Rxb2 {[%emt 0:00:22]} Rh2+ {[%emt 0:00:08]} 0-1

[Event "NOR-ch Various 2019"]
[Site "Larvik"]
[Date "2019.07.06"]
[Round "1.15"]
[White "Fossan, Petter"]
[Black "Wiig, Ole Martin"]
[Result "1-0"]
[ECO "B50"]
[WhiteElo "2295"]
[BlackElo "1816"]
[Annotator "NA"]
[PlyCount "53"]
[EventDate "2019.07.06"]
[EventType "swiss"]
[EventCountry "NOR"]
[SourceTitle "playchess.com"]
[Source "ChessBase"]
[SourceQuality "1"]
[TimeControl "40/5400+30:1800+30"]

1. e4 {[%emt 0:00:00]} c5 {[%emt 0:00:00]} 2. Nf3 {[%emt 0:00:00]} Nc6 {[%emt 0:00:00]} 3. c3 {[%emt 0:00:38]} d6 {[%emt 0:06:16]} 4. d4 {[%emt 0:00:07]} Nf6 {[%emt 0:01:32]} 5. Be2 {[%emt 0:00:23]} cxd4 {[%emt 0:06:30]} 6. cxd4 {[%emt 0:00:45]} e6 {[%emt 0:08:23]} 7. Nc3 {[%emt 0:00:48]} a6 {[%emt 0:00:44]} 8. O-O {[%emt 0:02:05]} Be7 {[%emt 0:03:47]} 9. h3 {[%emt 0:02:32]} O-O {[%emt 0:02:19]} 10. a3 {[%emt 0:03:28]} b6 {[%emt 0:02:31]} 11. Bd3 {[%emt 0:03:05]} Qc7 {[%emt 0:07:12]} 12. Be3 {[%emt 0:01:08]} Bb7 {[%emt 0:07:01]} 13. Rc1 {[%emt 0:01:03]} Qb8 {[%emt 0:04:39]} 14. Re1 {[%emt 0:06:33]} Nd7 {[%emt 0:03:32]} 15. Bb1 {[%emt 0:02:18]} Bd8 {[%emt 0:03:56]} 16. Qc2 {[%emt 0:07:44]} g6 {[%emt 0:02:18]} 17. Ba2 {[%emt 0:01:35]} Re8 {[%emt 0:11:06]} 18. d5 {[%emt 0:04:52]} Nce5 {[%emt 0:05:03]} 19. Nd4 {[%emt 0:02:50]} exd5 {[%emt 0:01:47]} 20. Nxd5 {[%emt 0:02:29]} Nc5 {[%emt 0:03:48]} 21. Rcd1 {[%emt 0:01:30]} Ne6 {[%emt 0:07:06]} 22. f4 {[%emt 0:05:52]} Nxd4 {[%emt 0:00:45]} 23. Bxd4 {[%emt 0:02:03]} Nd7 {[%emt 0:00:58]} 24. Qb3 {[%emt 0:04:46]} Nc5 {[%emt 0:03:03]} 25. Bxc5 {[%emt 0:00:33]} bxc5 {[%emt 0:02:59]} 26. Nf6+ {[%emt 0:00:28]} Bxf6 {[%emt 0:00:24]} 27. Qxf7+ {[%emt 0:00:05]} 1-0

[Event "NOR-ch Various 2019"]
[Site "Larvik"]
[Date "2019.07.06"]
[Round "1.17"]
[White "Opseth, Oliver"]
[Black "Heier, Odin Nikolai"]
[Result "1/2-1/2"]
[ECO "C31"]
[WhiteElo "1714"]
[BlackElo "1863"]
[Annotator "NA RC"]
[PlyCount "113"]
[EventDate "2019.07.06"]
[EventType "swiss"]
[EventCountry "NOR"]
[SourceTitle "playchess.com"]
[Source "ChessBase"]
[SourceQuality "1"]
[TimeControl "40/5400+30:1800+30"]

1. e4 {[%emt 0:00:00]} e5 {[%emt 0:00:00]} 2. f4 {[%emt 0:00:00]} d5 {[%emt 0:00:51]} 3. Nf3 {[%emt 0:02:37]} dxe4 {[%emt 0:06:23]} 4. Nxe5 {[%emt 0:00:30]} Nd7 {[%emt 0:16:55]} 5. d4 {[%emt 0:07:33]} exd3 {[%emt 0:03:09]} 6. Bxd3 {[%emt 0:00:21]} Ngf6 {[%emt 0:07:09]} 7. Qe2 {[%emt 0:05:24]} Be7 {[%emt 0:06:00]} 8. Nc3 {[%emt 0:02:49]} O-O {[%emt 0:04:00]} 9. Be3 {[%emt 0:02:06]} c6 {[%emt 0:21:22]} 10. O-O-O {[%emt 0:03:17]} Qc7 {[%emt 0:02:51]} 11. Nxd7 {[%emt 0:11:27]} Bxd7 {[%emt 0:00:21]} 12. g4 {[%emt 0:02:18]} Bxg4 {[%emt 0:02:30]} 13. Qg2 {[%emt 0:00:39]} Bxd1 {[%emt 0:01:16]} 14. Rxd1 {[%emt 0:00:37]} Bd6 {[%emt 0:10:56]} 15. Rg1 {[%emt 0:03:42]} g6 {[%emt 0:00:40]} 16. Qg5 {[%emt 0:06:11]} Nd5 {[%emt 0:11:17]} 17. Nxd5 {[%emt 0:08:46]} cxd5 {[%emt 0:00:05]} 18. f5 {[%emt 0:02:26]} Be5 {[%emt 0:01:20]} 19. h4 {[%emt 0:02:10]} Qd8 {[%emt 0:01:48]} 20. Qg4 {[%emt 0:00:28]} Bg7 {[%emt 0:00:34]} 21. h5 {[%emt 0:02:00]} Qd6 {[%emt 0:00:29]} 22. Qh3 {[%emt 0:05:19]} Rae8 {[%emt 0:00:28]} 23. hxg6 {[%emt 0:01:01]} fxg6 {[%emt 0:00:14]} 24. fxg6 {[%emt 0:01:27]} h6 {[%emt 0:00:30]} 25. Kd1 {[%emt 0:06:14]} Qf6 {[%emt 0:00:37]} 26. Rf1 {[%emt 0:05:42]} Qxb2 {[%emt 0:00:31]} 27. Rxf8+ {[%emt 0:00:20]} Rxf8 {[%emt 0:00:37]} 28. Qe6+ {[%emt 0:09:13]} Kh8 {[%emt 0:00:13]} 29. Qxd5 {[%emt 0:03:08]} Qa1+ {[%emt 0:00:46]} 30. Bc1 {[%emt 0:00:05]} Bb2 {[%emt 0:00:34]} 31. g7+ {[%emt 0:00:22]} Bxg7 {[%emt 0:00:10]} 32. Qe4 {[%emt 0:01:07]} Kg8 {[%emt 0:00:44]} 33. Qh7+ {[%emt 0:02:29]} Kf7 {[%emt 0:00:07]} 34. Qe4 {[%emt 0:00:26]} Kg8 {[%emt 0:00:57]} 35. Qh7+ {[%emt 0:01:22]} Kf7 {[%emt 0:00:06]} 36. Bc4+ {[%emt 0:01:30]} Kf6 {[%emt 0:00:19]} 37. Qd3 {[%emt 0:01:14]} Qe5 {[%emt 0:01:05]} 38. Qf3+ {[%emt 0:01:05]} Ke7 {[%emt 0:00:29]} 39. Qxb7+ {[%emt 0:01:04]} Kd8 {[%emt 0:00:27]} 40. Qa8+ {[%emt 0:00:23]} Kc7 {[%emt 0:00:26]} 41. Qxa7+ {[%emt 0:30:08]} Kd8 {[%emt 0:30:18]} 42. Qb6+ {[%emt 0:00:00]} Qc7 {[%emt 0:00:00]} 43. Qb3 {[%emt 0:00:00]} Qd7+ {[%emt 0:00:00]} 44. Ke1 {[%emt 0:00:00]} Qe7+ {[%emt 0:00:00]} 45. Be3 {[%emt 0:00:00]} Qh4+ {[%emt 0:00:00]} 46. Kd2 {[%emt 0:00:00]} Qh2+ {[%emt 0:00:00]} 47. Be2 {[%emt 0:00:00]} Qd6+ {[%emt 0:00:00]} 48. Kc1 {[%emt 0:00:00]} Rf6 {[%emt 0:00:00]} 49. a4 {[%emt 0:00:00]} Re6 {[%emt 0:00:00]} 50. Bg4 {[%emt 0:00:00]} Rf6 {[%emt 0:00:00]} 51. Be2 {[%emt 0:00:00]} Re6 {[%emt 0:00:00]} 52. Bg4 {[%emt 0:00:00]} Rf6 {[%emt 0:00:00]} 53. Qc4 {[%emt 0:00:00]} Qa3+ {[%emt 0:00:00]} 54. Kd2 {[%emt 0:00:00]} Qd6+ {[%emt 0:00:36]} 55. Kc1 {[%emt 0:03:14]} Qa3+ {[%emt 0:00:15]} 56. Kd2 {[%emt 0:00:41]} Qd6+ {[%emt 0:00:37]} 57. Kc1 {[%emt 0:00:06]} 1/2-1/2

[Event "NOR-ch Various 2019"]
[Site "Larvik"]
[Date "2019.07.06"]
[Round "1.18"]
[White "Nordquelle, Daniel"]
[Black "Sebastian, Andreas"]
[Result "0-1"]
[ECO "B07"]
[WhiteElo "2181"]
[BlackElo "1911"]
[Annotator "NA"]
[PlyCount "66"]
[EventDate "2019.07.06"]
[EventType "swiss"]
[EventCountry "NOR"]
[SourceTitle "playchess.com"]
[Source "ChessBase"]
[SourceQuality "1"]
[TimeControl "40/5400+30:1800+30"]

1. e4 {[%emt 0:00:00]} d6 {[%emt 0:00:00]} 2. d4 {[%emt 0:03:59]} Nf6 {[%emt 0:05:42]} 3. Bd3 {[%emt 0:00:16]} e5 {[%emt 0:00:09]} 4. c3 {[%emt 0:00:20]} d5 {[%emt 0:00:15]} 5. dxe5 {[%emt 0:04:59]} Nxe4 {[%emt 0:00:20]} 6. Be3 {[%emt 0:00:57]} Nc6 {[%emt 0:02:18]} 7. f4 {[%emt 0:01:02]} Bc5 {[%emt 0:11:01]} 8. Bxc5 {[%emt 0:02:37]} Nxc5 {[%emt 0:00:09]} 9. Bb5 {[%emt 0:03:46]} O-O {[%emt 0:03:55]} 10. Nf3 {[%emt 0:00:45]} Bf5 {[%emt 0:05:21]} 11. O-O {[%emt 0:00:51]} a6 {[%emt 0:07:43]} 12. Bxc6 {[%emt 0:02:12]} bxc6 {[%emt 0:00:06]} 13. Nd4 {[%emt 0:00:06]} Qd7 {[%emt 0:00:13]} 14. Qh5 {[%emt 0:02:35]} Bg4 {[%emt 0:10:05]} 15. Qh4 {[%emt 0:01:32]} f6 {[%emt 0:02:57]} 16. b4 {[%emt 0:15:01]} Ne4 {[%emt 0:05:16]} 17. h3 {[%emt 0:21:14]} fxe5 {[%emt 0:02:33]} 18. fxe5 {[%emt 0:01:36]} Rxf1+ {[%emt 0:08:09]} 19. Kxf1 {[%emt 0:00:07]} Rf8+ {[%emt 0:04:17]} 20. Kg1 {[%emt 0:00:09]} Qf7 {[%emt 0:04:03]} 21. Nd2 {[%emt 0:16:20]} Nxd2 {[%emt 0:00:23]} 22. hxg4 {[%emt 0:06:08]} Qf4 {[%emt 0:03:26]} 23. Re1 {[%emt 0:00:31]} g5 {[%emt 0:08:13]} 24. Qh6 {[%emt 0:05:45]} Qf2+ {[%emt 0:02:31]} 25. Kh2 {[%emt 0:00:05]} Qxe1 {[%emt 0:01:28]} 26. Qxg5+ {[%emt 0:00:05]} Kh8 {[%emt 0:00:10]} 27. Qe7 {[%emt 0:00:23]} Nf1+ {[%emt 0:01:39]} 28. Kh1 {[%emt 0:01:22]} Ne3+ {[%emt 0:00:38]} 29. Kh2 {[%emt 0:00:53]} Nxg4+ {[%emt 0:00:13]} 30. Kh3 {[%emt 0:00:07]} Nf2+ {[%emt 0:01:18]} 31. Kg3 {[%emt 0:02:11]} Ne4+ {[%emt 0:03:00]} 32. Kh2 {[%emt 0:00:59]} Qg3+ {[%emt 0:00:09]} 33. Kg1 {[%emt 0:00:06]} Rf1+ {[%emt 0:00:08]} 0-1